[Event "Titled Tuesday Blitz June 07 Late 2022"]
[White "Van Dael, Siem"]
[Black "Urazayev, Arystanbek"]
[WhiteFideId "1049771"]
[BlackFideId "13709810"]
[WhiteElo "2113"]
[BlackElo "2422"]
[Result "0-1"]
[Round "05"]
[TimeControl "180+1"]
[Date "2022.06.07"]
[WhiteClock "0:00:03"]
[BlackClock "0:00:20"]

1. e4 {[%clk 0:03:00]}  c6 {[%clk 0:02:59]} 2. d4 {[%clk 0:02:59]}  d5 {[%clk 0:02:59]} 3. exd5 {[%clk 0:03:00]}  cxd5 {[%clk 0:03:00]} 4. Nf3 {[%clk 0:03:01]}  Nc6 {[%clk 0:02:57]} 5. Ne5 {[%clk 0:03:01]}  Qb6 {[%clk 0:02:55]} 6. Nc3 {[%clk 0:02:41]}  e6 {[%clk 0:02:38]} 7. Bb5 {[%clk 0:02:39]}  a6 {[%clk 0:02:33]} 8. Qh5 {[%clk 0:02:27]}  Qc7 {[%clk 0:02:27]} 9. Bxc6+ {[%clk 0:02:16]}  bxc6 {[%clk 0:02:28]} 10. Bf4 {[%clk 0:02:17]}  Nf6 {[%clk 0:02:28]} 11. Qf3 {[%clk 0:02:16]}  Bd6 {[%clk 0:02:27]} 12. O-O {[%clk 0:02:12]}  O-O {[%clk 0:02:26]} 13. Na4 {[%clk 0:02:10]}  Ne4 {[%clk 0:02:23]} 14. Rfe1 {[%clk 0:02:07]}  f6 {[%clk 0:02:22]} 15. Nd3 {[%clk 0:02:07]}  e5 {[%clk 0:02:20]} 16. Be3 {[%clk 0:01:46]}  Ng5 {[%clk 0:02:21]} 17. Qh5 {[%clk 0:01:35]}  e4 {[%clk 0:02:15]} 18. Ndc5 {[%clk 0:01:31]}  Bf5 {[%clk 0:02:09]} 19. h3 {[%clk 0:01:24]}  Bg6 {[%clk 0:01:53]} 20. Qh4 {[%clk 0:01:17]}  h6 {[%clk 0:01:45]} 21. Nc3 {[%clk 0:01:10]}  a5 {[%clk 0:01:35]} 22. a4 {[%clk 0:01:08]}  Rae8 {[%clk 0:01:35]} 23. Ne2 {[%clk 0:01:06]}  Bf7 {[%clk 0:01:26]} 24. Bf4 {[%clk 0:01:04]}  Nh7 {[%clk 0:01:05]} 25. Bxd6 {[%clk 0:01:01]}  Qxd6 {[%clk 0:01:06]} 26. Qg3 {[%clk 0:00:59]}  Qd8 {[%clk 0:00:55]} 27. Nc1 {[%clk 0:00:50]}  f5 {[%clk 0:00:52]} 28. N1b3 {[%clk 0:00:49]}  Bh5 {[%clk 0:00:50]} 29. Nb7 {[%clk 0:00:33]}  f4 {[%clk 0:00:43]} 30. Qg4 {[%clk 0:00:17]}  Qc7 {[%clk 0:00:20]} 31. Qxh5 {[%clk 0:00:16]}  Qxb7 {[%clk 0:00:21]} 32. Rab1 {[%clk 0:00:08]}  f3 {[%clk 0:00:19]} 33. Nxa5 {[%clk 0:00:04]}  Qc7 {[%clk 0:00:19]} 34. Nb3 {[%clk 0:00:03]}  fxg2 {[%clk 0:00:20]} 35. Qg4 {[%clk 0:00:02]}  Ng5 {[%clk 0:00:19]} 36. Kxg2 {[%clk 0:00:03]}  Nf3 {[%clk 0:00:19]} 37. Re2 {[%clk 0:00:03]}  Qh2+ {[%clk 0:00:18]} 38. Kf1 {[%clk 0:00:04]}  Qh1+ {[%clk 0:00:19]} 39. Qg1 {[%clk 0:00:03]}  Qxg1# {[%clk 0:00:20]} 0-1


[Site "https://www.chess.com"]

[Event "Titled Tuesday Blitz June 07 Late 2022"]
[White "Wieczorek, Oskar"]
[Black "Bortnyk, Mykola"]
[WhiteFideId "1133950"]
[BlackFideId "14120836"]
[WhiteElo "2330"]
[BlackElo "2582"]
[Result "1-0"]
[Round "05"]
[TimeControl "180+1"]
[Date "2022.06.07"]
[WhiteClock "0:00:07"]
[BlackClock "0:00:03"]

1. e4 {[%clk 0:03:00]}  Nf6 {[%clk 0:03:00]} 2. e5 {[%clk 0:03:01]}  Nd5 {[%clk 0:03:00]} 3. d4 {[%clk 0:03:01]}  d6 {[%clk 0:03:01]} 4. Nf3 {[%clk 0:03:01]}  dxe5 {[%clk 0:03:02]} 5. Nxe5 {[%clk 0:03:02]}  c6 {[%clk 0:03:02]} 6. Be2 {[%clk 0:03:01]}  Bf5 {[%clk 0:03:02]} 7. O-O {[%clk 0:03:01]}  Nd7 {[%clk 0:03:03]} 8. Nf3 {[%clk 0:03:01]}  N7f6 {[%clk 0:03:03]} 9. c4 {[%clk 0:02:55]}  Nb4 {[%clk 0:03:04]} 10. Nh4 {[%clk 0:02:48]}  Bc2 {[%clk 0:02:46]} 11. Qd2 {[%clk 0:02:26]}  Ne4 {[%clk 0:02:40]} 12. Qxb4 {[%clk 0:02:25]}  e5 {[%clk 0:02:22]} 13. Qxb7 {[%clk 0:02:20]}  Rc8 {[%clk 0:02:13]} 14. Nf3 {[%clk 0:01:18]}  Rc7 {[%clk 0:02:11]} 15. Qa6 {[%clk 0:01:17]}  exd4 {[%clk 0:02:12]} 16. Nbd2 {[%clk 0:01:15]}  Nc5 {[%clk 0:02:07]} 17. Qa5 {[%clk 0:01:16]}  Bd6 {[%clk 0:01:47]} 18. Bd1 {[%clk 0:01:14]}  Bd3 {[%clk 0:01:30]} 19. Re1+ {[%clk 0:01:14]}  Ne6 {[%clk 0:01:22]} 20. c5 {[%clk 0:00:53]}  Be7 {[%clk 0:01:09]} 21. Nb3 {[%clk 0:00:50]}  O-O {[%clk 0:00:59]} 22. Ne5 {[%clk 0:00:49]}  Bf5 {[%clk 0:00:51]} 23. Bf3 {[%clk 0:00:49]}  Qc8 {[%clk 0:00:45]} 24. Be4 {[%clk 0:00:43]}  Bxe4 {[%clk 0:00:40]} 25. Rxe4 {[%clk 0:00:44]}  Rd8 {[%clk 0:00:38]} 26. Nd3 {[%clk 0:00:42]}  Rd5 {[%clk 0:00:36]} 27. Qe1 {[%clk 0:00:41]}  Bf6 {[%clk 0:00:34]} 28. Bf4 {[%clk 0:00:40]}  Rb7 {[%clk 0:00:32]} 29. Bd6 {[%clk 0:00:38]}  h6 {[%clk 0:00:29]} 30. Nd2 {[%clk 0:00:34]}  Kh7 {[%clk 0:00:27]} 31. Nc4 {[%clk 0:00:34]}  Ng5 {[%clk 0:00:22]} 32. Re8 {[%clk 0:00:33]}  Qg4 {[%clk 0:00:18]} 33. Bg3 {[%clk 0:00:28]}  h5 {[%clk 0:00:17]} 34. Qe2 {[%clk 0:00:21]}  Qxe2 {[%clk 0:00:10]} 35. Rxe2 {[%clk 0:00:20]}  Ne6 {[%clk 0:00:10]} 36. b3 {[%clk 0:00:19]}  h4 {[%clk 0:00:08]} 37. Be5 {[%clk 0:00:17]}  Nxc5 {[%clk 0:00:05]} 38. Nxc5 {[%clk 0:00:16]}  Rxc5 {[%clk 0:00:04]} 39. Bxf6 {[%clk 0:00:17]}  gxf6 {[%clk 0:00:05]} 40. Rd1 {[%clk 0:00:17]}  Rd5 {[%clk 0:00:05]} 41. Re4 {[%clk 0:00:17]}  c5 {[%clk 0:00:06]} 42. Rxh4+ {[%clk 0:00:17]}  Kg7 {[%clk 0:00:07]} 43. Rh3 {[%clk 0:00:17]}  Re7 {[%clk 0:00:06]} 44. Rhd3 {[%clk 0:00:17]}  f5 {[%clk 0:00:06]} 45. g3 {[%clk 0:00:17]}  Kf6 {[%clk 0:00:07]} 46. Kg2 {[%clk 0:00:17]}  Rd8 {[%clk 0:00:07]} 47. Kf3 {[%clk 0:00:17]}  Rde8 {[%clk 0:00:08]} 48. R3d2 {[%clk 0:00:17]}  Re6 {[%clk 0:00:06]} 49. Nb2 {[%clk 0:00:17]}  Ra6 {[%clk 0:00:05]} 50. Nd3 {[%clk 0:00:17]}  Ra5 {[%clk 0:00:05]} 51. Rc1 {[%clk 0:00:17]}  Rc8 {[%clk 0:00:05]} 52. Rdc2 {[%clk 0:00:17]}  Rh8 {[%clk 0:00:04]} 53. h4 {[%clk 0:00:16]}  Rc8 {[%clk 0:00:02]} 54. Rxc5 {[%clk 0:00:16]}  Rcxc5 {[%clk 0:00:03]} 55. Rxc5 {[%clk 0:00:16]}  Rxa2 {[%clk 0:00:03]} 56. Rc4 {[%clk 0:00:15]}  Ra3 {[%clk 0:00:04]} 57. Rb4 {[%clk 0:00:13]}  a5 {[%clk 0:00:05]} 58. Rb6+ {[%clk 0:00:13]}  Kg7 {[%clk 0:00:05]} 59. Ke2 {[%clk 0:00:11]}  Ra2+ {[%clk 0:00:06]} 60. Kf3 {[%clk 0:00:11]}  Ra3 {[%clk 0:00:06]} 61. Kf4 {[%clk 0:00:10]}  a4 {[%clk 0:00:07]} 62. Nc5 {[%clk 0:00:11]}  d3 {[%clk 0:00:06]} 63. Nxd3 {[%clk 0:00:10]}  axb3 {[%clk 0:00:05]} 64. Nc5 {[%clk 0:00:10]}  Ra2 {[%clk 0:00:04]} 65. Rxb3 {[%clk 0:00:10]}  Rxf2+ {[%clk 0:00:04]} 66. Rf3 {[%clk 0:00:10]}  Rc2 {[%clk 0:00:04]} 67. Nb3 {[%clk 0:00:10]}  Kf6 {[%clk 0:00:04]} 68. Nd4 {[%clk 0:00:08]}  Rc4 {[%clk 0:00:05]} 69. Rd3 {[%clk 0:00:09]}  Ra4 {[%clk 0:00:05]} 70. Ke3 {[%clk 0:00:09]}  Ke5 {[%clk 0:00:05]} 71. Nf3+ {[%clk 0:00:09]}  Ke6 {[%clk 0:00:05]} 72. Rb3 {[%clk 0:00:08]}  Ra6 {[%clk 0:00:03]} 73. Nd4+ {[%clk 0:00:08]}  Kf6 {[%clk 0:00:04]} 74. Kf3 {[%clk 0:00:07]}  Ra4 {[%clk 0:00:04]} 75. Ne2 {[%clk 0:00:07]}  Ra6 {[%clk 0:00:04]} 76. Nf4 {[%clk 0:00:08]}  Rc6 {[%clk 0:00:03]} 77. Rb6 {[%clk 0:00:07]} 1-0


[Site "https://www.chess.com"]

[Event "Titled Tuesday Blitz June 07 Late 2022"]
[White "Xiong, Jeffery"]
[Black "Makarian, Rudik"]
[WhiteFideId "2047640"]
[BlackFideId "44105681"]
[WhiteElo "2714"]
[BlackElo "2398"]
[Result "1-0"]
[Round "05"]
[TimeControl "180+1"]
[Date "2022.06.07"]
[WhiteClock "0:00:10"]
[BlackClock "0:00:11"]

1. e4 {[%clk 0:00:42]}  c5 {[%clk 0:02:58]} 2. Nf3 {[%clk 0:00:41]}  d6 {[%clk 0:02:57]} 3. Bb5+ {[%clk 0:00:40]}  Nd7 {[%clk 0:02:57]} 4. d4 {[%clk 0:00:40]}  cxd4 {[%clk 0:02:58]} 5. Nxd4 {[%clk 0:00:41]}  Nf6 {[%clk 0:02:54]} 6. O-O {[%clk 0:00:40]}  a6 {[%clk 0:02:54]} 7. Bd3 {[%clk 0:00:39]}  g6 {[%clk 0:02:51]} 8. c4 {[%clk 0:00:39]}  Bg7 {[%clk 0:02:51]} 9. Nc3 {[%clk 0:00:38]}  O-O {[%clk 0:02:51]} 10. Re1 {[%clk 0:00:37]}  Nc5 {[%clk 0:02:45]} 11. Bf1 {[%clk 0:00:37]}  Ng4 {[%clk 0:02:28]} 12. f3 {[%clk 0:00:35]}  Ne5 {[%clk 0:02:28]} 13. Be3 {[%clk 0:00:35]}  Bd7 {[%clk 0:02:23]} 14. Rc1 {[%clk 0:00:36]}  Rc8 {[%clk 0:02:24]} 15. b4 {[%clk 0:00:36]}  Ne6 {[%clk 0:02:20]} 16. Nxe6 {[%clk 0:00:36]}  fxe6 {[%clk 0:01:55]} 17. c5 {[%clk 0:00:36]}  dxc5 {[%clk 0:01:55]} 18. bxc5 {[%clk 0:00:36]}  Qe8 {[%clk 0:01:50]} 19. Qb3 {[%clk 0:00:37]}  Rb8 {[%clk 0:01:41]} 20. Rcd1 {[%clk 0:00:36]}  Kh8 {[%clk 0:01:36]} 21. Bd4 {[%clk 0:00:37]}  g5 {[%clk 0:01:33]} 22. Qb2 {[%clk 0:00:37]}  Nc6 {[%clk 0:01:13]} 23. Bxg7+ {[%clk 0:00:36]}  Kxg7 {[%clk 0:01:14]} 24. Nd5+ {[%clk 0:00:33]}  e5 {[%clk 0:01:10]} 25. Bc4 {[%clk 0:00:32]}  Kg6 {[%clk 0:01:02]} 26. Nb4 {[%clk 0:00:27]}  Nxb4 {[%clk 0:00:53]} 27. Qxb4 {[%clk 0:00:28]}  Bc6 {[%clk 0:00:54]} 28. Qb2 {[%clk 0:00:28]}  Kf6 {[%clk 0:00:54]} 29. Rf1 {[%clk 0:00:25]}  Qh5 {[%clk 0:00:48]} 30. f4 {[%clk 0:00:24]}  gxf4 {[%clk 0:00:49]} 31. Rxf4+ {[%clk 0:00:24]}  Kg6 {[%clk 0:00:47]} 32. Be2 {[%clk 0:00:22]}  Qxe2 {[%clk 0:00:20]} 33. Qxe2 {[%clk 0:00:23]}  Rxf4 {[%clk 0:00:20]} 34. Rf1 {[%clk 0:00:19]}  Rbf8 {[%clk 0:00:16]} 35. Rxf4 {[%clk 0:00:19]}  Rxf4 {[%clk 0:00:17]} 36. Qd3 {[%clk 0:00:12]}  Rxe4 {[%clk 0:00:16]} 37. h3 {[%clk 0:00:11]}  Kf7 {[%clk 0:00:15]} 38. Qb3+ {[%clk 0:00:10]}  Kg7 {[%clk 0:00:14]} 39. Qb2 {[%clk 0:00:11]}  Rd4 {[%clk 0:00:14]} 40. Kh2 {[%clk 0:00:10]}  Rd5 {[%clk 0:00:13]} 41. Qc3 {[%clk 0:00:10]}  Kf6 {[%clk 0:00:13]} 42. Kg3 {[%clk 0:00:09]}  Kf5 {[%clk 0:00:13]} 43. Kh4 {[%clk 0:00:09]}  e4 {[%clk 0:00:11]} 44. g4+ {[%clk 0:00:10]}  Kf4 {[%clk 0:00:11]} 45. Qg3# {[%clk 0:00:10]} 1-0


[Site "https://www.chess.com"]

[Event "Titled Tuesday Blitz June 07 Late 2022"]
[White "Zhigalko, Sergei"]
[Black "Rohl Montes, Juan Armando"]
[WhiteFideId "13502956"]
[BlackFideId "3900487"]
[WhiteElo "2662"]
[BlackElo "2359"]
[Result "0-1"]
[Round "05"]
[TimeControl "180+1"]
[Date "2022.06.07"]
[WhiteClock "0:00:07"]
[BlackClock "0:00:22"]

1. e4 {[%clk 0:03:00]}  e5 {[%clk 0:02:59]} 2. Nf3 {[%clk 0:03:00]}  Nc6 {[%clk 0:02:59]} 3. Bc4 {[%clk 0:03:00]}  Nf6 {[%clk 0:02:59]} 4. d3 {[%clk 0:02:59]}  Bc5 {[%clk 0:03:00]} 5. O-O {[%clk 0:02:59]}  O-O {[%clk 0:03:00]} 6. Nbd2 {[%clk 0:02:59]}  d5 {[%clk 0:02:57]} 7. exd5 {[%clk 0:02:58]}  Nxd5 {[%clk 0:02:58]} 8. Ne4 {[%clk 0:02:56]}  Be7 {[%clk 0:02:56]} 9. Re1 {[%clk 0:02:55]}  a6 {[%clk 0:02:54]} 10. Ng3 {[%clk 0:02:37]}  Nb6 {[%clk 0:02:41]} 11. Bb3 {[%clk 0:02:34]}  Bf6 {[%clk 0:02:10]} 12. h3 {[%clk 0:02:19]}  a5 {[%clk 0:01:51]} 13. a3 {[%clk 0:02:18]}  Nd4 {[%clk 0:01:48]} 14. Nxd4 {[%clk 0:02:07]}  exd4 {[%clk 0:01:49]} 15. Qf3 {[%clk 0:02:06]}  a4 {[%clk 0:01:47]} 16. Ba2 {[%clk 0:02:06]}  c6 {[%clk 0:01:45]} 17. Nh5 {[%clk 0:02:05]}  Be6 {[%clk 0:01:38]} 18. Nxf6+ {[%clk 0:01:11]}  Qxf6 {[%clk 0:01:39]} 19. Qxf6 {[%clk 0:01:11]}  gxf6 {[%clk 0:01:39]} 20. Bxe6 {[%clk 0:01:11]}  fxe6 {[%clk 0:01:40]} 21. Rxe6 {[%clk 0:01:12]}  Kf7 {[%clk 0:01:41]} 22. Re4 {[%clk 0:01:08]}  Rfe8 {[%clk 0:01:36]} 23. Kf1 {[%clk 0:01:02]}  Rxe4 {[%clk 0:01:31]} 24. dxe4 {[%clk 0:01:03]}  Nc4 {[%clk 0:01:31]} 25. Ke2 {[%clk 0:00:59]}  b5 {[%clk 0:01:30]} 26. Kd3 {[%clk 0:00:47]}  c5 {[%clk 0:01:29]} 27. f4 {[%clk 0:00:45]}  h5 {[%clk 0:01:20]} 28. Ke2 {[%clk 0:00:17]}  h4 {[%clk 0:01:15]} 29. b3 {[%clk 0:00:10]}  axb3 {[%clk 0:01:11]} 30. cxb3 {[%clk 0:00:11]}  Na5 {[%clk 0:01:12]} 31. Rb1 {[%clk 0:00:09]}  c4 {[%clk 0:01:09]} 32. bxc4 {[%clk 0:00:08]}  bxc4 {[%clk 0:01:10]} 33. Rb5 {[%clk 0:00:05]}  Nb3 {[%clk 0:01:07]} 34. Bb2 {[%clk 0:00:04]}  d3+ {[%clk 0:01:06]} 35. Ke3 {[%clk 0:00:03]}  Rd8 {[%clk 0:00:58]} 36. Rb7+ {[%clk 0:00:03]}  Kg8 {[%clk 0:00:52]} 37. Bc3 {[%clk 0:00:02]}  d2 {[%clk 0:00:52]} 38. Bxd2 {[%clk 0:00:02]}  Rxd2 {[%clk 0:00:53]} 39. e5 {[%clk 0:00:02]}  fxe5 {[%clk 0:00:51]} 40. fxe5 {[%clk 0:00:03]}  Rxg2 {[%clk 0:00:50]} 41. Kf4 {[%clk 0:00:02]}  Rg7 {[%clk 0:00:44]} 42. Rb8+ {[%clk 0:00:02]}  Kh7 {[%clk 0:00:44]} 43. e6 {[%clk 0:00:02]}  Rc7 {[%clk 0:00:42]} 44. Rd8 {[%clk 0:00:01]}  Kg6 {[%clk 0:00:33]} 45. Ke5 {[%clk 0:00:01]}  c3 {[%clk 0:00:30]} 46. Rg8+ {[%clk 0:00:01]}  Kh6 {[%clk 0:00:29]} 47. Kd6 {[%clk 0:00:01]}  c2 {[%clk 0:00:28]} 48. Rg1 {[%clk 0:00:01]}  c1=Q {[%clk 0:00:27]} 49. Rxc1 {[%clk 0:00:02]}  Rxc1 {[%clk 0:00:28]} 50. e7 {[%clk 0:00:03]}  Re1 {[%clk 0:00:23]} 51. a4 {[%clk 0:00:04]}  Nc5 {[%clk 0:00:20]} 52. a5 {[%clk 0:00:03]}  Nb7+ {[%clk 0:00:20]} 53. Kd7 {[%clk 0:00:04]}  Nxa5 {[%clk 0:00:20]} 54. e8=Q {[%clk 0:00:04]}  Rxe8 {[%clk 0:00:20]} 55. Kxe8 {[%clk 0:00:05]}  Kg5 {[%clk 0:00:21]} 56. Kf7 {[%clk 0:00:06]}  Kf4 {[%clk 0:00:21]} 57. Kg6 {[%clk 0:00:07]}  Kg3 {[%clk 0:00:22]} 0-1


[Site "https://www.chess.com"]

[Event "Titled Tuesday Blitz June 07 Late 2022"]
[White "Adewumi, Tanitoluwa"]
[Black "Halkias, Stelios"]
[WhiteFideId "30966396"]
[BlackFideId "4201809"]
[WhiteElo "2534"]
[BlackElo "2453"]
[Result "1/2-1/2"]
[Round "06"]
[TimeControl "180+1"]
[Date "2022.06.07"]
[WhiteClock "0:00:10"]
[BlackClock "0:00:10"]

1. e4 {[%clk 0:03:00]}  c5 {[%clk 0:02:59]} 2. Nf3 {[%clk 0:03:00]}  d6 {[%clk 0:02:59]} 3. Bb5+ {[%clk 0:02:59]}  Nd7 {[%clk 0:02:59]} 4. c3 {[%clk 0:02:58]}  Nf6 {[%clk 0:02:57]} 5. Bd3 {[%clk 0:02:58]}  a6 {[%clk 0:02:54]} 6. Bc2 {[%clk 0:02:58]}  c4 {[%clk 0:02:53]} 7. b3 {[%clk 0:02:56]}  b5 {[%clk 0:02:49]} 8. bxc4 {[%clk 0:02:56]}  bxc4 {[%clk 0:02:49]} 9. Qe2 {[%clk 0:02:54]}  Qc7 {[%clk 0:02:41]} 10. Na3 {[%clk 0:02:53]}  Nb6 {[%clk 0:02:39]} 11. e5 {[%clk 0:02:52]}  dxe5 {[%clk 0:02:34]} 12. Nxe5 {[%clk 0:02:52]}  Be6 {[%clk 0:02:34]} 13. Rb1 {[%clk 0:02:51]}  g6 {[%clk 0:02:16]} 14. O-O {[%clk 0:02:39]}  Bg7 {[%clk 0:02:15]} 15. Rxb6 {[%clk 0:02:29]}  Qxb6 {[%clk 0:02:13]} 16. Ba4+ {[%clk 0:02:30]}  Kf8 {[%clk 0:02:08]} 17. Naxc4 {[%clk 0:02:27]}  Qc7 {[%clk 0:02:09]} 18. d4 {[%clk 0:02:18]}  Nd5 {[%clk 0:02:07]} 19. Bd2 {[%clk 0:02:09]}  Rc8 {[%clk 0:01:53]} 20. Re1 {[%clk 0:02:01]}  Nxc3 {[%clk 0:01:18]} 21. Bxc3 {[%clk 0:01:51]}  Bxe5 {[%clk 0:01:17]} 22. Nxe5 {[%clk 0:01:14]}  Qxc3 {[%clk 0:01:15]} 23. d5 {[%clk 0:01:10]}  Bxd5 {[%clk 0:01:05]} 24. Nd7+ {[%clk 0:01:08]}  Kg7 {[%clk 0:01:04]} 25. Nb6 {[%clk 0:00:57]}  Be6 {[%clk 0:00:54]} 26. Nxc8 {[%clk 0:00:56]}  Rxc8 {[%clk 0:00:54]} 27. h3 {[%clk 0:00:53]}  Rc5 {[%clk 0:00:50]} 28. Bb3 {[%clk 0:00:44]}  Bxb3 {[%clk 0:00:45]} 29. axb3 {[%clk 0:00:45]}  e6 {[%clk 0:00:45]} 30. Qe3 {[%clk 0:00:38]}  Qxe3 {[%clk 0:00:32]} 31. Rxe3 {[%clk 0:00:39]}  a5 {[%clk 0:00:31]} 32. Kf1 {[%clk 0:00:28]}  g5 {[%clk 0:00:32]} 33. Re4 {[%clk 0:00:26]}  h5 {[%clk 0:00:31]} 34. b4 {[%clk 0:00:20]}  axb4 {[%clk 0:00:31]} 35. Rxb4 {[%clk 0:00:20]}  h4 {[%clk 0:00:32]} 36. Re4 {[%clk 0:00:19]}  Kg6 {[%clk 0:00:31]} 37. Ke2 {[%clk 0:00:19]}  Rc6 {[%clk 0:00:31]} 38. Re3 {[%clk 0:00:19]}  f5 {[%clk 0:00:31]} 39. Kf3 {[%clk 0:00:18]}  Kf6 {[%clk 0:00:32]} 40. Ra3 {[%clk 0:00:17]}  Rc2 {[%clk 0:00:32]} 41. Ra8 {[%clk 0:00:16]}  Rc5 {[%clk 0:00:32]} 42. Rf8+ {[%clk 0:00:16]}  Kg6 {[%clk 0:00:31]} 43. Rg8+ {[%clk 0:00:16]}  Kf6 {[%clk 0:00:32]} 44. Rf8+ {[%clk 0:00:16]}  Kg7 {[%clk 0:00:32]} 45. Re8 {[%clk 0:00:16]}  e5 {[%clk 0:00:30]} 46. Re6 {[%clk 0:00:16]}  Kf7 {[%clk 0:00:29]} 47. Ra6 {[%clk 0:00:15]}  e4+ {[%clk 0:00:28]} 48. Ke2 {[%clk 0:00:15]}  f4 {[%clk 0:00:28]} 49. Rh6 {[%clk 0:00:14]}  Re5 {[%clk 0:00:27]} 50. Kf1 {[%clk 0:00:14]}  Re6 {[%clk 0:00:27]} 51. Rh5 {[%clk 0:00:13]}  Kg6 {[%clk 0:00:24]} 52. Rh8 {[%clk 0:00:13]}  Rb6 {[%clk 0:00:25]} 53. Rg8+ {[%clk 0:00:12]}  Kf5 {[%clk 0:00:25]} 54. Rf8+ {[%clk 0:00:12]}  Ke5 {[%clk 0:00:25]} 55. Re8+ {[%clk 0:00:12]}  Kd4 {[%clk 0:00:25]} 56. Rd8+ {[%clk 0:00:13]}  Kc4 {[%clk 0:00:25]} 57. Rc8+ {[%clk 0:00:12]}  Kd3 {[%clk 0:00:24]} 58. Rd8+ {[%clk 0:00:13]}  Kc4 {[%clk 0:00:25]} 59. Rc8+ {[%clk 0:00:13]}  Kd5 {[%clk 0:00:25]} 60. Rg8 {[%clk 0:00:12]}  Rb1+ {[%clk 0:00:22]} 61. Ke2 {[%clk 0:00:12]}  Rb2+ {[%clk 0:00:22]} 62. Ke1 {[%clk 0:00:13]}  Kd4 {[%clk 0:00:22]} 63. Rxg5 {[%clk 0:00:12]}  e3 {[%clk 0:00:17]} 64. fxe3+ {[%clk 0:00:12]}  fxe3 {[%clk 0:00:18]} 65. Rg8 {[%clk 0:00:13]}  Ke4 {[%clk 0:00:14]} 66. Re8+ {[%clk 0:00:12]}  Kf4 {[%clk 0:00:15]} 67. Rf8+ {[%clk 0:00:13]}  Kg3 {[%clk 0:00:15]} 68. Rg8+ {[%clk 0:00:12]}  Kh2 {[%clk 0:00:15]} 69. Rg4 {[%clk 0:00:12]}  Rxg2 {[%clk 0:00:08]} 70. Rxh4 {[%clk 0:00:12]}  Kg3 {[%clk 0:00:08]} 71. Rg4+ {[%clk 0:00:11]}  Kxh3 {[%clk 0:00:08]} 72. Rxg2 {[%clk 0:00:12]}  Kxg2 {[%clk 0:00:09]} 73. Ke2 {[%clk 0:00:09]}  Kg3 {[%clk 0:00:10]} 74. Kxe3 {[%clk 0:00:10]} 1/2-1/2


[Site "https://www.chess.com"]

[Event "Titled Tuesday Blitz June 07 Late 2022"]
[White "Adla, Diego"]
[Black "Yuan, Qingyu"]
[WhiteFideId "100072"]
[BlackFideId "8609772"]
[WhiteElo "2377"]
[BlackElo "2359"]
[Result "1-0"]
[Round "06"]
[TimeControl "180+1"]
[Date "2022.06.07"]
[WhiteClock "0:00:18"]
[BlackClock "0:00:06"]

1. c4 {[%clk 0:03:00]}  e6 {[%clk 0:02:59]} 2. g3 {[%clk 0:03:00]}  d5 {[%clk 0:03:00]} 3. Bg2 {[%clk 0:03:00]}  Nf6 {[%clk 0:03:00]} 4. Nf3 {[%clk 0:02:59]}  dxc4 {[%clk 0:03:01]} 5. Qa4+ {[%clk 0:02:54]}  Bd7 {[%clk 0:02:58]} 6. Qxc4 {[%clk 0:02:54]}  c5 {[%clk 0:02:59]} 7. O-O {[%clk 0:02:53]}  Bc6 {[%clk 0:02:55]} 8. d3 {[%clk 0:02:50]}  Nbd7 {[%clk 0:02:54]} 9. e4 {[%clk 0:02:49]}  Be7 {[%clk 0:02:50]} 10. Be3 {[%clk 0:02:48]}  O-O {[%clk 0:02:49]} 11. a4 {[%clk 0:02:46]}  Rc8 {[%clk 0:02:46]} 12. Qc2 {[%clk 0:02:45]}  c4 {[%clk 0:02:36]} 13. Nd4 {[%clk 0:02:38]}  cxd3 {[%clk 0:02:36]} 14. Qxd3 {[%clk 0:02:39]}  Nc5 {[%clk 0:02:24]} 15. Qe2 {[%clk 0:02:37]}  Bxe4 {[%clk 0:02:19]} 16. Bxe4 {[%clk 0:02:37]}  Ncxe4 {[%clk 0:02:15]} 17. Rd1 {[%clk 0:02:35]}  Nd5 {[%clk 0:02:12]} 18. Nd2 {[%clk 0:02:33]}  Nxd2 {[%clk 0:02:08]} 19. Rxd2 {[%clk 0:02:33]}  a6 {[%clk 0:02:08]} 20. Rad1 {[%clk 0:02:27]}  Qa5 {[%clk 0:02:06]} 21. Nf5 {[%clk 0:02:20]}  Bb4 {[%clk 0:01:59]} 22. Rd4 {[%clk 0:02:00]}  Qxa4 {[%clk 0:01:28]} 23. Nxg7 {[%clk 0:01:16]}  Kxg7 {[%clk 0:01:05]} 24. Rg4+ {[%clk 0:01:01]}  Kh8 {[%clk 0:00:59]} 25. Bh6 {[%clk 0:00:42]}  Rg8 {[%clk 0:00:53]} 26. Rxd5 {[%clk 0:00:37]}  Rxg4 {[%clk 0:00:41]} 27. Qxg4 {[%clk 0:00:35]}  Qa1+ {[%clk 0:00:41]} 28. Rd1 {[%clk 0:00:35]}  Qxb2 {[%clk 0:00:41]} 29. Qg5 {[%clk 0:00:19]}  Bd2 {[%clk 0:00:06]} 30. Rxd2 {[%clk 0:00:18]}  Qb1+ {[%clk 0:00:06]} 31. Kg2 {[%clk 0:00:18]}  Qe4+ {[%clk 0:00:06]} 32. f3 {[%clk 0:00:18]}  Qg6 {[%clk 0:00:06]} 33. Rd8+ {[%clk 0:00:17]}  Rxd8 {[%clk 0:00:06]} 34. Qxd8+ {[%clk 0:00:17]}  Qg8 {[%clk 0:00:07]} 35. Qf6+ {[%clk 0:00:17]}  Qg7 {[%clk 0:00:06]} 36. Qxg7# {[%clk 0:00:18]} 1-0


[Site "https://www.chess.com"]

[Event "Titled Tuesday Blitz June 07 Late 2022"]
[White "Barp, Alberto"]
[Black "Shimanov, Aleksandr"]
[WhiteFideId "872555"]
[BlackFideId "4198603"]
[WhiteElo "2229"]
[BlackElo "2605"]
[Result "0-1"]
[Round "06"]
[TimeControl "180+1"]
[Date "2022.06.07"]
[WhiteClock "0:00:13"]
[BlackClock "0:00:40"]

1. d4 {[%clk 0:02:27]}  Nf6 {[%clk 0:02:57]} 2. c4 {[%clk 0:02:27]}  g6 {[%clk 0:02:57]} 3. g3 {[%clk 0:02:27]}  Bg7 {[%clk 0:02:57]} 4. Bg2 {[%clk 0:02:27]}  O-O {[%clk 0:02:58]} 5. Nc3 {[%clk 0:02:27]}  d6 {[%clk 0:02:56]} 6. Nf3 {[%clk 0:02:26]}  Nc6 {[%clk 0:02:55]} 7. O-O {[%clk 0:02:26]}  e5 {[%clk 0:02:56]} 8. dxe5 {[%clk 0:02:24]}  Nxe5 {[%clk 0:02:56]} 9. Nxe5 {[%clk 0:02:21]}  dxe5 {[%clk 0:02:57]} 10. Bg5 {[%clk 0:02:21]}  Qxd1 {[%clk 0:02:48]} 11. Rfxd1 {[%clk 0:02:20]}  c6 {[%clk 0:02:49]} 12. b3 {[%clk 0:02:11]}  h6 {[%clk 0:02:44]} 13. Be3 {[%clk 0:02:10]}  Re8 {[%clk 0:02:42]} 14. h3 {[%clk 0:02:08]}  Be6 {[%clk 0:02:41]} 15. Rd2 {[%clk 0:02:02]}  Bf8 {[%clk 0:02:40]} 16. Na4 {[%clk 0:01:58]}  Bb4 {[%clk 0:02:35]} 17. Rdd1 {[%clk 0:01:57]}  Kg7 {[%clk 0:02:29]} 18. Bc5 {[%clk 0:01:56]}  Bxc5 {[%clk 0:02:02]} 19. Nxc5 {[%clk 0:01:57]}  Bc8 {[%clk 0:02:03]} 20. Rd6 {[%clk 0:01:44]}  Rb8 {[%clk 0:01:59]} 21. Rad1 {[%clk 0:01:42]}  h5 {[%clk 0:01:57]} 22. Kh2 {[%clk 0:01:31]}  Bf5 {[%clk 0:01:35]} 23. e4 {[%clk 0:01:08]}  Bc8 {[%clk 0:01:34]} 24. Rd8 {[%clk 0:01:08]}  Kf8 {[%clk 0:01:27]} 25. f3 {[%clk 0:01:04]}  Ke7 {[%clk 0:01:24]} 26. Rxe8+ {[%clk 0:01:04]}  Nxe8 {[%clk 0:01:24]} 27. h4 {[%clk 0:01:04]}  b6 {[%clk 0:01:21]} 28. Nd3 {[%clk 0:01:04]}  f6 {[%clk 0:01:13]} 29. Nb4 {[%clk 0:01:05]}  Bb7 {[%clk 0:01:07]} 30. Bh3 {[%clk 0:00:59]}  Rd8 {[%clk 0:01:00]} 31. Rxd8 {[%clk 0:00:58]}  Kxd8 {[%clk 0:01:01]} 32. Kg2 {[%clk 0:00:57]}  c5 {[%clk 0:00:54]} 33. Nd5 {[%clk 0:00:54]}  Bxd5 {[%clk 0:00:54]} 34. exd5 {[%clk 0:00:53]}  Nd6 {[%clk 0:00:54]} 35. Be6 {[%clk 0:00:44]}  f5 {[%clk 0:00:53]} 36. a4 {[%clk 0:00:41]}  Ke7 {[%clk 0:00:51]} 37. Kf2 {[%clk 0:00:41]}  Kf6 {[%clk 0:00:51]} 38. Ke3 {[%clk 0:00:41]}  g5 {[%clk 0:00:48]} 39. f4 {[%clk 0:00:28]}  exf4+ {[%clk 0:00:46]} 40. gxf4 {[%clk 0:00:28]}  g4 {[%clk 0:00:47]} 41. Bd7 {[%clk 0:00:26]}  Ne4 {[%clk 0:00:44]} 42. Be8 {[%clk 0:00:24]}  Nd6 {[%clk 0:00:41]} 43. Bxh5 {[%clk 0:00:23]}  Kg7 {[%clk 0:00:40]} 44. Kf2 {[%clk 0:00:13]}  Kh6 {[%clk 0:00:40]} 45. Bxg4 {[%clk 0:00:12]}  fxg4 {[%clk 0:00:40]} 46. Kg3 {[%clk 0:00:13]}  Kh5 {[%clk 0:00:40]} 0-1


[Site "https://www.chess.com"]